fUST/lending_fUST_20240828
["ID","MTS","AMOUNT","RATE_DAILY","PERIOD"]
[336344133,1724779878519,-500.0,0.00013423,2]
[336344134,1724779878528,-447.91,0.00013423,2]
[336344135,1724779878538,-642.55,0.00013423,2]
[336344136,1724779878548,-652.19,0.00013423,2]
[336344137,1724779878557,-500.0,0.00013424,2]
[336344138,1724779878567,-476.67,0.00013424,2]
[336344139,1724779878577,-500.0,0.00013424,2]
[336344140,1724779878587,-500.0,0.00013424,2]
[336344141,1724779878597,-500.0,0.00013424,2]
[336344142,1724779878608,-518.15,0.00013424,2]
[336344143,1724779878617,-635.0,0.00013424,2]
[336344144,1724779878626,-500.0,0.00013424,2]
[336344145,1724779878636,-500.0,0.00013424,2]
[336344146,1724779878646,-500.0,0.00013424,2]
[336344147,1724779878655,-500.0,0.00013424,2]
[336344148,1724779878664,-500.0,0.00013424,2]
[336344149,1724779878673,-567.27,0.00013424,2]
[336344150,1724779878683,-155.47,0.00013424,2]
[336344151,1724779878693,-500.0,0.00013424,2]
[336344152,1724779878702,-178.03,0.00013424,2]
[336344153,1724779878711,-500.0,0.00013424,2]
[336344154,1724779878721,-500.0,0.00013424,2]
[336344155,1724779878734,-500.0,0.00013424,2]
[336344156,1724779878744,-500.0,0.00013424,2]
[336344157,1724779878754,-500.0,0.00013424,2]
[336344158,1724779878763,-500.0,0.00013424,2]
[336344159,1724779878773,-594.38,0.00013424,2]
[336344160,1724779878782,-500.0,0.00013424,2]
[336344161,1724779878791,-500.0,0.00013424,2]
[336344162,1724779878802,-151.0,0.00013424,2]
[336344163,1724779878812,-500.0,0.00013424,2]
[336344164,1724779878822,-500.0,0.00013424,2]
[336344165,1724779878831,-610.545893,0.00013424,2]
[336344166,1724779878841,-213.447968,0.00013424,2]
[336344167,1724779878850,-500.0,0.00013424,2]
[336344168,1724779878861,-610.545893,0.00013424,2]
[336344169,1724779878870,-213.447968,0.00013424,2]
[336344170,1724779878880,-500.0,0.00013424,2]
[336344171,1724779878891,-500.0,0.00013424,2]
[336344172,1724779878900,-500.0,0.00013424,2]
[336344173,1724779878910,-500.0,0.00013424,2]
[336344174,1724779878919,-500.0,0.00013424,2]
[336344175,1724779878929,-500.0,0.00013424,2]
[336344176,1724779878939,-500.0,0.00013424,2]
[336344177,1724779878949,-500.0,0.00013424,2]
[336344178,1724779878959,-500.0,0.00013424,2]
[336344179,1724779878969,-184.970593,0.00013424,2]
[336344180,1724779878979,-184.970593,0.00013424,2]
[336344181,1724779878990,-500.0,0.00013424,2]
[336344182,1724779878999,-500.0,0.00013424,2]
[336344183,1724779879009,-500.0,0.00013424,2]
[336344184,1724779879018,-500.0,0.00013424,2]
[336344185,1724779879028,-2500.0,0.00013424,2]
[336344186,1724779879037,-500.0,0.00013424,2]
[336344187,1724779879045,-500.0,0.00013424,2]
[336344188,1724779879055,-500.0,0.00013424,2]
[336344189,1724779879064,-500.0,0.00013424,2]
[336344190,1724779879073,-500.0,0.00013424,2]
[336344191,1724779879083,-171.01978266,0.00013424,2]
[336344192,1724779879093,-500.0,0.00013424,2]
[336344193,1724779879103,-500.0,0.00013424,2]
[336344194,1724779879113,-500.0,0.00013424,2]
[336344195,1724779879123,-500.0,0.00013424,2]
[336344196,1724779879132,-500.0,0.00013424,2]
[336344197,1724779879142,-500.0,0.00013424,2]
[336344198,1724779879151,-163.12,0.00013424,2]
[336344199,1724779879161,-500.0,0.00013424,2]
[336344200,1724779879171,-418.56,0.00013424,2]
[336344201,1724779879181,-500.0,0.00013424,2]
[336344202,1724779879191,-235.61,0.00013424,2]
[336344203,1724779879200,-240.32,0.00013424,2]
[336344204,1724779879210,-500.0,0.00013424,2]
[336344205,1724779879220,-500.0,0.00013424,2]
[336344206,1724779879230,-527.15,0.00013424,2]
[336344207,1724779879240,-255.31,0.00013424,2]
[336344208,1724779879250,-195.66,0.00013424,2]
[336344209,1724779879260,-508.06,0.00013424,2]
[336344210,1724779879271,-302.04,0.00013424,2]
[336344211,1724779879282,-500.0,0.00013424,2]
[336344212,1724779879291,-500.0,0.00013424,2]
[336344213,1724779879301,-202.87,0.00013424,2]
[336344214,1724779879311,-500.0,0.00013424,2]
[336344215,1724779879321,-500.0,0.00013424,2]
[336344216,1724779879331,-500.0,0.00013424,2]
[336344217,1724779879342,-500.0,0.00013424,2]
[336344218,1724779879351,-500.0,0.00013424,2]
[336344219,1724779879363,-949.33,0.00013424,2]
[336344220,1724779879372,-1334.5,0.00013424,2]
[336344221,1724779879383,-500.0,0.00013424,2]
[336344222,1724779879393,-500.0,0.00013424,2]
[336344223,1724779879404,-500.0,0.00013424,2]
[336344224,1724779879414,-500.0,0.00013424,2]
[336344225,1724779879424,-525.17,0.00013424,2]
[336344226,1724779879435,-1467.36,0.00013424,2]
[336344227,1724779879445,-500.0,0.00013424,2]
[336344228,1724779879454,-500.0,0.00013424,2]
[336344229,1724779879465,-12810.92,0.00013424,2]
[336344230,1724779879475,-491.85,0.00013424,2]
[336344231,1724779879486,-500.0,0.00013424,2]
[336344232,1724779879497,-618.09,0.00013424,2]
[336344233,1724779879508,-517.67,0.00013424,2]
[336344234,1724779879518,-529.08,0.00013424,2]
[336344235,1724779879529,-531.07,0.00013424,2]
[336344236,1724779879539,-500.0,0.00013424,2]
[336344237,1724779879551,-500.0,0.00013424,2]
[336344238,1724779879561,-500.0,0.00013424,2]
[336344239,1724779879571,-305.78711605,0.00013424,2]
[336344240,1724779879582,-500.0,0.00013424,2]
[336344241,1724779879591,-610.36,0.00013424,2]
[336344242,1724779879601,-500.0,0.00013424,2]
[336344243,1724779879613,-500.0,0.00013424,2]
[336344244,1724779879623,-500.0,0.00013424,2]
[336344245,1724779879632,-500.0,0.00013424,2]
[336344246,1724779879642,-1231.78,0.00013424,2]
[336344247,1724779879652,-1055.57,0.00013424,2]
[336344248,1724779879662,-568.7,0.00013424,2]
[336344249,1724779879672,-357.58121981,0.00013424,2]
[336344250,1724779879681,-500.0,0.00013424,2]
[336344251,1724779879691,-234.259968,0.00013424,2]
[336344252,1724779879701,-500.0,0.00013424,2]
[336344253,1724779879711,-555.147453,0.00013424,2]
[336344254,1724779879723,-505.45,0.00013424,2]
[336344255,1724779879735,-836.85,0.00013424,2]
[336344256,1724779879745,-555.147453,0.00013424,2]
[336344257,1724779879755,-234.259968,0.00013424,2]
[336344258,1724779879765,-287.74560589,0.00013477,2]
[336344259,1724779879775,-154.88350412,0.00013477,2]
[336344260,1724779879785,-600.0,0.00013483,2]
[336344261,1724779879794,-600.0,0.00013483,2]
[336344262,1724779879804,-600.0,0.00013483,2]
[336344263,1724779879815,-5686.15034512,0.00013485,2]
[336344264,1724779879824,-565.9181826,0.00013496,2]
[336344265,1724779879869,-150.112233,0.000135,2]
[336344266,1724779879879,-600.0,0.00013515,2]
[336344267,1724779879889,-2000.0,0.00013524,2]
[336344268,1724779879898,-169.17881,0.00013546,2]
[336344269,1724779879907,-176.139938,0.00013546,2]
[336344270,1724779879917,-165.20247,0.00013546,2]
[336344271,1724779879926,-176.139938,0.00013546,2]
[336344272,1724779879936,-418.782419,0.00013546,2]
[336344273,1724779879945,-446.948849,0.00013546,2]
[336344274,1724779879954,-418.782419,0.00013546,2]
[336344275,1724779879964,-989.214855,0.00013546,2]
[336344276,1724779879974,-683.637688,0.00013546,2]
[336344277,1724779879984,-603.632732,0.00013546,2]
[336344278,1724779879993,-499.192409,0.00013546,2]
[336344279,1724779880003,-600.0,0.00013553,2]
[336344280,1724779880012,-600.0,0.00013553,2]
[336344281,1724779880022,-600.0,0.00013553,2]
[336344282,1724779880031,-600.0,0.00013553,2]
[336344283,1724779880041,-7337.67217515,0.00013586,2]
[336344284,1724779880051,-150.112233,0.000136,2]
[336344285,1724779880060,-150.112233,0.000136,2]
[336344286,1724779880070,-195.02226072,0.00013697,2]
[336344287,1724779880081,-612.84,0.00013697,2]
[336344288,1724779880091,-500.0,0.00013697,2]
[336344289,1724779880101,-153.91,0.00013697,2]
[336344290,1724779880112,-500.0,0.00013697,2]
[336344291,1724779880121,-500.0,0.00013697,2]
[336344292,1724779880131,-500.0,0.00013697,2]
[336344293,1724779880141,-500.0,0.00013697,2]
[336344294,1724779880151,-500.0,0.00013697,2]
[336344295,1724779880160,-500.0,0.00013697,2]
[336344296,1724779880169,-500.0,0.00013697,2]
[336344297,1724779880179,-500.0,0.00013697,2]
[336344298,1724779880189,-500.0,0.00013697,2]
[336344299,1724779880199,-500.0,0.00013697,2]
[336344300,1724779880208,-500.0,0.00013697,2]
[336344301,1724779880217,-500.0,0.00013697,2]
[336344302,1724779880226,-500.0,0.00013697,2]
[336344303,1724779880236,-500.0,0.00013697,2]
[336344304,1724779880245,-500.0,0.00013697,2]
[336344305,1724779880255,-500.0,0.00013697,2]
[336344306,1724779880265,-500.0,0.00013697,2]
[336344307,1724779880275,-500.0,0.00013697,2]
[336344308,1724779880285,-176.98,0.00013697,2]
[336344309,1724779880295,-344.98,0.00013697,2]
[336344310,1724779880305,-500.0,0.00013697,2]
[336344311,1724779880315,-540.9,0.00013697,2]
[336344312,1724779880325,-500.0,0.00013697,2]
[336344313,1724779880335,-652.19,0.00013697,2]
[336344314,1724779880346,-555.77984104,0.00013698,2]
[336344315,1724779880357,-173.12486757,0.00013698,2]
[336344316,1724779880376,-500.0,0.00013698,2]
[336344317,1724779880386,-575.016471,0.00013698,2]
[336344318,1724779880395,-500.0,0.00013698,2]
[336344319,1724779880405,-575.016471,0.00013698,2]
[336344320,1724779880414,-514.8335718,0.00013698,2]
[336344321,1724779880424,-500.0,0.00013698,2]
[336344322,1724779880434,-575.016471,0.00013698,2]
[336344323,1724779880443,-575.016471,0.00013698,2]
[336344324,1724779880452,-575.016471,0.00013698,2]
[336344325,1724779880462,-575.016471,0.00013698,2]
[336344326,1724779880473,-575.016471,0.00013698,2]
[336344327,1724779880483,-575.016471,0.00013698,2]
[336344328,1724779880492,-575.016471,0.00013698,2]
[336344329,1724779880503,-575.016471,0.00013698,2]
[336344330,1724779880512,-500.0,0.00013698,2]
[336344331,1724779880522,-574.44725531,0.00013698,2]
[336344332,1724779880531,-575.016471,0.00013698,2]
[336344333,1724779880541,-500.0,0.00013698,2]
[336344334,1724779880551,-500.0,0.00013698,2]
[336344335,1724779880561,-575.016471,0.00013698,2]
[336344336,1724779880570,-575.016471,0.00013698,2]
[336344337,1724779880581,-575.016471,0.00013698,2]
[336344338,1724779880591,-575.016471,0.00013698,2]
[336344339,1724779880601,-500.0,0.00013698,2]
[336344340,1724779880617,-500.0,0.00013698,2]
[336344341,1724779880628,-500.0,0.00013698,2]
[336344342,1724779880638,-500.0,0.00013698,2]
[336344343,1724779880647,-500.0,0.00013698,2]
[336344344,1724779880657,-575.016471,0.00013698,2]
[336344345,1724779880666,-500.0,0.00013698,2]
[336344346,1724779880676,-500.0,0.00013698,2]
[336344347,1724779880685,-500.0,0.00013698,2]
[336344348,1724779880695,-500.0,0.00013698,2]
[336344349,1724779880705,-500.0,0.00013698,2]
[336344350,1724779880716,-500.0,0.00013698,2]
[336344351,1724779880728,-609.97935647,0.00013698,2]
[336344352,1724779880738,-500.0,0.00013698,2]
[336344353,1724779880747,-500.0,0.00013698,2]
[336344354,1724779880757,-211.68861078,0.00013698,2]
[336344355,1724779880767,-500.0,0.00013698,2]
[336344356,1724779880776,-551.11580522,0.00013698,2]
[336344357,1724779880786,-500.0,0.00013698,2]
[336344358,1724779880798,-500.0,0.00013698,2]
[336344359,1724779880808,-500.0,0.00013698,2]
[336344360,1724779880818,-500.0,0.00013698,2]
[336344361,1724779880827,-269.72330333,0.00013698,2]
[336344362,1724779880836,-3451.10946449,0.00013698,2]
[336344363,1724779880846,-3451.10946449,0.00013698,2]
[336344364,1724779880857,-3451.10946449,0.00013698,2]
[336344365,1724779880867,-3451.10946449,0.00013698,2]
[336344366,1724779880876,-3451.10946449,0.00013698,2]
[336344367,1724779880886,-3451.10946449,0.00013698,2]
[336344368,1724779880895,-3451.10946449,0.00013698,2]
[336344369,1724779880905,-3451.10946449,0.00013698,2]
[336344370,1724779880915,-499.99999999,0.00013698,2]
[336344371,1724779880924,-250.43,0.00013698,2]
[336344372,1724779880936,-500.0,0.00013698,2]
[336344373,1724779880947,-253.03,0.00013698,2]
[336344374,1724779880957,-228.27623637,0.00013698,2]
[336344375,1724779880968,-500.0,0.00013698,2]
[336344376,1724779880978,-544.5,0.00013698,2]
[336344377,1724779880987,-301.45,0.00013698,2]
[336344378,1724779880997,-500.0,0.00013698,2]
[336344379,1724779881006,-500.0,0.00013698,2]
[336344380,1724779881016,-500.0,0.00013698,2]
[336344381,1724779881025,-574.03,0.00013698,2]
[336344382,1724779881035,-500.0,0.00013698,2]
[336344383,1724779881044,-500.0,0.00013698,2]
[336344384,1724779881053,-151.0,0.00013698,2]
[336344385,1724779881063,-504.29,0.00013698,2]
[336344386,1724779881071,-500.0,0.00013698,2]
[336344387,1724779881080,-500.0,0.00013698,2]
[336344388,1724779881089,-500.0,0.00013698,2]
[336344389,1724779881098,-500.0,0.00013698,2]
[336344390,1724779881109,-158.73,0.00013698,2]
[336344391,1724779881119,-500.0,0.00013698,2]
[336344392,1724779881128,-548.3,0.00013698,2]
[336344393,1724779881138,-500.0,0.00013698,2]
[336344394,1724779881147,-64.56604931,0.00013698,2]
[336344395,1724779881303,-262.44395069,0.00013698,2]
[336344396,1724779881313,-500.0,0.00013698,2]
[336344397,1724779881323,-224.46,0.00013698,2]
[336344398,1724779881333,-345.6,0.00013698,2]
[336344399,1724779881344,-303.81,0.00013698,2]
[336344400,1724779881355,-523.89,0.00013698,2]
[336344401,1724779881365,-500.0,0.00013698,2]
[336344402,1724779881374,-500.0,0.00013698,2]
[336344403,1724779881384,-45.71119648,0.00013698,2]
[336344404,1724779881397,-454.28880352,0.00013698,2]
[336344405,1724779881406,-266.5,0.00013698,2]
[336344406,1724779881417,-79.72291603,0.00013698,2]
[336344407,1724779881768,-1188.45495096,9.429e-05,2]
[336344408,1724779881778,-500.0,0.00012054,2]
[336344409,1724779881789,-500.0,0.00012328,2]
[336344410,1724779881798,-151.0,0.00012328,2]
[336344411,1724779881809,-500.0,0.00012602,2]
[336344412,1724779881818,-500.0,0.00012876,2]
[336344413,1724779881828,-493.73689206,0.00012985,2]
[336344414,1724779881838,-544.46212792,0.00013025,2]
[336344415,1724779881849,-151.0,0.0001315,2]
[336344416,1724779881860,-420.27708397,0.00013698,2]
[336344417,1724779881870,-329.13,0.00013698,2]
[336344418,1724779881880,-406.2,0.00013698,2]
[336344419,1724779881890,-500.0,0.00013698,2]
[336344420,1724779881901,-185.89,0.00013698,2]
[336344421,1724779881911,-500.0,0.00013698,2]
[336344422,1724779881921,-500.0,0.00013698,2]
[336344423,1724779881930,-500.0,0.00013698,2]
[336344424,1724779881940,-500.0,0.00013698,2]
[336344425,1724779881950,-252.22996809,0.00013698,2]
[336344426,1724779881961,-500.0,0.00013698,2]
[336344427,1724779881971,-500.0,0.00013698,2]
[336344428,1724779881981,-500.0,0.00013698,2]
[336344429,1724779881991,-500.0,0.00013698,2]
[336344430,1724779882001,-182.84,0.00013698,2]
[336344431,1724779882011,-500.0,0.00013698,2]
[336344432,1724779882021,-500.0,0.00013698,2]
[336344433,1724779882031,-500.0,0.00013698,2]
[336344434,1724779882041,-500.0,0.00013698,2]
[336344435,1724779882051,-500.0,0.00013698,2]
[336344436,1724779882062,-500.0,0.00013698,2]
[336344437,1724779882072,-949.33,0.00013698,2]
[336344438,1724779882082,-1334.5,0.00013698,2]
[336344439,1724779882093,-500.0,0.00013698,2]
[336344440,1724779882103,-500.0,0.00013698,2]
[336344441,1724779882115,-500.0,0.00013698,2]
[336344442,1724779882125,-500.0,0.00013698,2]
[336344443,1724779882135,-525.17,0.00013698,2]
[336344444,1724779882145,-1467.36,0.00013698,2]
[336344445,1724779882154,-500.0,0.00013698,2]
[336344446,1724779882164,-500.0,0.00013698,2]
[336344447,1724779882174,-12810.92,0.00013698,2]
[336344448,1724779882184,-413.92,0.00013698,2]
[336344449,1724779882194,-618.09,0.00013698,2]
[336344450,1724779882203,-517.67,0.00013698,2]
[336344451,1724779882214,-529.08,0.00013698,2]
[336344452,1724779882224,-531.07,0.00013698,2]
[336344453,1724779882234,-500.0,0.00013698,2]
[336344454,1724779882245,-500.0,0.00013698,2]
[336344455,1724779882255,-500.0,0.00013698,2]
[336344456,1724779882265,-352.96,0.00013698,2]
[336344457,1724779882276,-500.0,0.00013698,2]
[336344458,1724779882287,-500.0,0.00013698,2]
[336344459,1724779882297,-500.0,0.00013698,2]
[336344460,1724779882307,-568.64,0.00013698,2]
[336344461,1724779882317,-1231.78,0.00013698,2]
[336344462,1724779882327,-1055.57,0.00013698,2]
[336344463,1724779882337,-568.7,0.00013698,2]
[336344464,1724779882348,-500.0,0.00013698,2]
[336344465,1724779882357,-500.0,0.00013698,2]
[336344466,1724779882367,-505.45,0.00013698,2]
[336344467,1724779882377,-836.85,0.00013698,2]
[336344468,1724779882387,-283.66727,0.00013699,2]
[336344469,1724779882397,-283.66727,0.00013699,2]
[336344470,1724779882407,-1975.703133,0.00013699,2]
[336344471,1724779882417,-1612.6607108,0.00013699,2]
[336344472,1724779882427,-318.51407914,0.00013699,2]
[336344557,1724780955163,-3264.07786861,7.875e-05,2]
[336344558,1724780955185,-695.14803561,7.954e-05,2]
[336344559,1724780955205,-629.437648,7.954e-05,2]
[336344560,1724780955226,-570.03577448,7.954e-05,2]
[336344561,1724780955248,-209.81980082,8.019e-05,2]
[336344562,1724780955270,-546.74672462,8.268e-05,2]
[336344563,1724780955292,-300.0,8.52e-05,2]
[336344564,1724780955315,-9931.90916934,8.521e-05,2]
[336344630,1724781032031,-174.74289193,7.954e-05,2]
[336344632,1724781032041,-300.0,8.017e-05,2]
[336344634,1724781032050,-24900.0,8.018e-05,2]
[336344636,1724781032060,-12079.11577535,8.521e-05,2]
[336344638,1724781032070,-5990.97244454,8.521e-05,2]
[336344826,1724781038348,-10340.61884848,8.521e-05,2]
[336344827,1724781038360,-544.48115159,8.521e-05,2]
[336344828,1724781038371,-207.05826369,8.521e-05,2]
[336344829,1724781038381,-220.8906946,8.521e-05,2]
[336344830,1724781038390,-301.73253605,8.532e-05,2]
[336344831,1724781038399,-420.0,8.819e-05,2]
[336344832,1724781038409,-4272.86430605,8.862e-05,2]
[336344833,1724781038418,-250.0,9.059e-05,2]
[336344834,1724781038427,-250.0,9.084e-05,2]
[336344835,1724781038437,-250.0,9.109e-05,2]
[336344836,1724781038446,-250.0,9.134e-05,2]
[336344837,1724781038455,-250.0,9.159e-05,2]
[336344839,1724781038465,-250.0,9.183e-05,2]
[336344841,1724781038474,-250.0,9.208e-05,2]
[336344842,1724781038484,-250.0,9.233e-05,2]
[336344843,1724781038493,-250.0,9.258e-05,2]
[336344845,1724781038503,-250.0,9.283e-05,2]
[336344846,1724781038512,-250.0,9.308e-05,2]
[336344847,1724781038521,-250.0,9.333e-05,2]
[336344848,1724781038530,-250.0,9.357e-05,2]
[336344849,1724781038539,-250.0,9.382e-05,2]
[336344850,1724781038548,-250.0,9.407e-05,2]
[336344851,1724781038557,-250.0,9.432e-05,2]
[336344852,1724781038567,-250.0,9.457e-05,2]
[336344853,1724781038576,-250.0,9.482e-05,2]
[336344854,1724781038586,-250.0,9.507e-05,2]
[336344855,1724781038595,-250.0,9.531e-05,2]
[336344856,1724781038607,-587.0,9.701e-05,2]
[336344857,1724781038616,-154.71377951,0.0001,2]
[336344858,1724781038626,-7268.03999196,0.00010328,2]
[336344859,1724781038636,-495.95112109,0.00010544,2]
[336344860,1724781038645,-290.06361681,0.00010957,2]
[336344861,1724781038654,-500.0,0.00010958,2]
[336344862,1724781038663,-590.71,0.00010958,2]
[336344863,1724781038673,-500.0,0.00010958,2]
[336344864,1724781038682,-500.0,0.00010958,2]
[336344865,1724781038691,-500.0,0.00010958,2]
[336344866,1724781038700,-534.20826196,0.00010958,2]
[336344867,1724781038710,-500.0,0.00010958,2]
[336344868,1724781038719,-500.0,0.00010958,2]
[336344869,1724781038728,-500.0,0.00010958,2]
[336344870,1724781038737,-500.0,0.00010958,2]
[336344871,1724781038747,-500.0,0.00010958,2]
[336344872,1724781038757,-500.0,0.00010958,2]
[336344873,1724781038766,-500.0,0.00010958,2]
[336344874,1724781038775,-500.0,0.00010958,2]
[336344875,1724781038784,-500.0,0.00010958,2]
[336344876,1724781038793,-500.0,0.00010958,2]
[336344877,1724781038803,-500.0,0.00010958,2]
[336344878,1724781038812,-500.0,0.00010958,2]
[336344879,1724781038822,-500.0,0.00010958,2]
[336344880,1724781038830,-500.0,0.00010958,2]
[336344881,1724781038840,-500.0,0.00010958,2]
[336344882,1724781038849,-500.0,0.00010958,2]
[336344883,1724781038859,-500.0,0.00010958,2]
[336344884,1724781038868,-513.23218858,0.00010958,2]
[336344885,1724781038877,-500.0,0.00010958,2]
[336344886,1724781038886,-176.09648138,0.00010958,2]
[336344887,1724781038895,-500.0,0.00010958,2]
[336344888,1724781038905,-500.0,0.00010958,2]
[336344889,1724781038914,-500.0,0.00010958,2]
[336344890,1724781038923,-527.13136881,0.00010958,2]
[336344891,1724781038932,-500.0,0.00010958,2]
[336344892,1724781038941,-500.0,0.00010958,2]
[336344893,1724781038950,-317.59,0.00010958,2]
[336344894,1724781038959,-500.0,0.00010958,2]
[336344895,1724781038969,-500.0,0.00010958,2]
[336344896,1724781038978,-546.2449713,0.00010958,2]
[336344897,1724781038987,-500.0,0.00010958,2]
[336344898,1724781038997,-500.0,0.00010958,2]
[336344899,1724781039006,-500.0,0.00010958,2]
[336344900,1724781039015,-500.0,0.00010958,2]
[336344901,1724781039024,-500.0,0.00010958,2]
[336344902,1724781039034,-500.0,0.00010958,2]
[336344903,1724781039044,-500.0,0.00010958,2]
[336344904,1724781039053,-329.13,0.00010958,2]
[336344905,1724781039062,-406.2,0.00010958,2]
[336344906,1724781039073,-500.0,0.00010958,2]
[336344907,1724781039083,-185.89,0.00010958,2]
[336344908,1724781039093,-500.0,0.00010958,2]
[336344909,1724781039104,-500.0,0.00010958,2]
[336344910,1724781039114,-500.0,0.00010958,2]
[336344911,1724781039127,-500.0,0.00010958,2]
[336344912,1724781039136,-500.0,0.00010958,2]
[336344913,1724781039145,-500.0,0.00010958,2]
[336344914,1724781039155,-500.0,0.00010958,2]
[336344915,1724781039165,-500.0,0.00010958,2]
[336344916,1724781039174,-500.0,0.00010958,2]
[336344917,1724781039183,-500.0,0.00010958,2]
[336344918,1724781039194,-198.93275147,0.00010958,2]
[336344919,1724781039204,-500.0,0.00010958,2]
[336344920,1724781039214,-500.0,0.00010958,2]
[336344921,1724781039223,-500.0,0.00010958,2]
[336344922,1724781039233,-500.0,0.00010958,2]
[336344923,1724781039244,-500.0,0.00010958,2]
[336344924,1724781039254,-500.0,0.00010958,2]
[336344925,1724781039264,-500.0,0.00010958,2]
[336344926,1724781039273,-500.0,0.00010958,2]
[336344927,1724781039283,-500.0,0.00010958,2]
[336344928,1724781039294,-500.0,0.00010958,2]
[336344929,1724781039303,-500.0,0.00010958,2]
[336344930,1724781039312,-500.0,0.00010958,2]
[336344931,1724781039321,-376.77048409,0.00010958,2]
[336344932,1724781039330,-500.0,0.00010958,2]
[336344933,1724781039339,-500.0,0.00010958,2]
[336344934,1724781039349,-500.0,0.00010958,2]
[336344935,1724781039360,-500.0,0.00010958,2]
[336344936,1724781039369,-500.0,0.00010958,2]
[336344937,1724781039379,-500.0,0.00010958,2]
[336344938,1724781039389,-500.0,0.00010958,2]
[336344939,1724781039399,-500.0,0.00010958,2]
[336344940,1724781039409,-500.0,0.00010958,2]
[336344941,1724781039418,-501.38732114,0.00010958,2]
[336344942,1724781039428,-500.0,0.00010958,2]
[336344943,1724781039438,-500.0,0.00010958,2]
[336344944,1724781039448,-500.0,0.00010958,2]
[336344945,1724781039458,-500.0,0.00010958,2]
[336344946,1724781039468,-500.0,0.00010958,2]
[336344947,1724781039478,-500.0,0.00010958,2]
[336344948,1724781039487,-639.19,0.00010958,2]
[336344949,1724781039497,-500.0,0.00010958,2]
[336344951,1724781039506,-500.0,0.00010958,2]
[336344952,1724781039516,-500.0,0.00010958,2]
[336344953,1724781039527,-500.0,0.00010958,2]
[336344954,1724781039536,-500.0,0.00010958,2]
[336344955,1724781039546,-500.0,0.00010958,2]
[336344956,1724781039555,-500.0,0.00010958,2]
[336344957,1724781039565,-500.0,0.00010958,2]
[336344958,1724781039575,-500.0,0.00010958,2]
[336344959,1724781039584,-500.0,0.00010958,2]
[336344960,1724781039593,-500.0,0.00010958,2]
[336344961,1724781039606,-500.0,0.00010958,2]
[336344962,1724781039617,-500.0,0.00010958,2]
[336344963,1724781039627,-500.0,0.00010958,2]
[336344964,1724781039636,-500.0,0.00010958,2]
[336344965,1724781039647,-500.0,0.00010958,2]
[336344966,1724781039657,-500.0,0.00010958,2]
[336344967,1724781039667,-500.0,0.00010958,2]
[336344968,1724781039676,-500.0,0.00010958,2]
[336344969,1724781039686,-500.0,0.00010958,2]
[336344970,1724781039695,-500.0,0.00010958,2]
[336344971,1724781039705,-500.0,0.00010958,2]
[336344972,1724781039714,-500.0,0.00010958,2]
[336344973,1724781039723,-500.0,0.00010958,2]
[336344974,1724781039733,-500.0,0.00010958,2]
[336344975,1724781039742,-500.0,0.00010958,2]
[336344976,1724781039752,-500.0,0.00010958,2]